Cogmind - Beta 14 @@@ ROGUE MODE // 2024.12.28 @ 20:31:38 Player: yua241 Result: Destroyed by G-34 Mercenary with Small Laser Performance ------------- Evolutions (1) 500 Regions Visited (2) 400 Robots Destroyed (18) 90 Value Destroyed (470) 470 Prototype IDs (0) 0 Alien Tech Used (0) 0 Bonus (0) 0 TOTAL SCORE: 1460 Bonus ------- None Cogmind --------- Core Integrity 0/400 Matter 290/300 Energy 100/100 System Corruption 4% Temperature Cool (35) Movement Core (100) Ox1 Location -9/Materials Parts ------- > --- POWER (1) -------- (None) > --- PROPULSION (3) --- (None) > --- UTILITY (3) ------ Small Storage Unit Terrain Scanner > --- WEAPON (2) ------- (None) > --- INVENTORY (8) ---- Light Ion Engine Light Ion Engine Light Ion Engine Light Assault Rifle Light Assault Rifle Peak State ------------ > --- POWER ------------ Ion Engine > --- PROPULSION ------- Aluminum Leg Aluminum Leg Aluminum Leg > --- UTILITY ---------- Small Storage Unit Medium Battery Terrain Scanner > --- WEAPON ----------- Heavy Particle Cannon Heavy Particle Cannon > --- INVENTORY -------- Light Ion Engine Light Ion Engine Light Ion Engine Heavy Particle Cannon Heavy Particle Cannon Assault Rifle Light Assault Rifle Light Assault Rifle [Rating: 14] Favorites ----------- Power Light Ion Engine Engine Light Ion Engine Propulsion Aluminum Leg Leg Aluminum Leg Utility Small Storage Unit Device Terrain Scanner Storage Small Storage Unit Protection Power Shielding Weapon Assault Rifle Energy Gun Small Laser Energy Cannon Heavy Particle Cannon Ballistic Gun Assault Rifle Build | -11 -10 -9 ------- Run | Yrd Mat Mat Slots Evolved 2 | . . 2 Power . | . . . Propulsion 1 | . . 1 Utility 1 | . . 1 Weapon . | . . . Parts Attached 20 | 4 6 10 Power 2 | . 1 1 Engine 2 | . 1 1 Core . | . . . Reactor . | . . . Propulsion 5 | 1 1 3 Treads . | . . . Leg 5 | 1 1 3 Wheel . | . . . Hover . | . . . Flight . | . . . Utility 5 | . 4 1 Device 1 | . 1 . Storage 2 | . 1 1 Processor . | . . . Hackware . | . . . Protection 2 | . 2 . Artifact . | . . . Weapon 8 | 3 . 5 Energy Gun 3 | 2 . 1 Energy Cannon 4 | . . 4 Ballistic Gun 1 | 1 . . Ballistic Cannon . | . . . Launcher . | . . . Special Weapon . | . . . Impact Weapon . | . . . Slashing Weapon . | . . . Piercing Weapon . | . . . Special Melee Weapon . | . . . Unidentified Prototypes . | . . . Parts Lost 9 | . . 9 Power 2 | . . 2 Propulsion 3 | . . 3 Utility 1 | . . 1 Weapon 3 | . . 3 Highest Loss Streak 6 | . . 6 To Critical Strikes . | . . . Average Slot Usage (%) 84 | . 85 83 Engine 9 | . 10 9 Leg 26 | . 28 26 Device 7 | . 1 11 Storage 14 | . 14 15 Energy Gun 10 | . 14 8 Energy Cannon 2 | . . 3 Ballistic Gun 10 | . 14 8 Peak Build Rating 14 | 3 7 14 Average Rating 7 | 2 6 8 On Entrance 3 | . 3 7 Naked Turns . | . . . Heaviest Build 25 | 3 12 25 Greatest Support 30 | 10 20 30 Greatest Overweight (x) . | . . . Average Overweight (x) . | . . . Largest Inventory Capacity 8 | 5 8 8 Average Capacity 7 | 5 7 8 Most Carried 8 | 5 8 8 Average Carried 6 | 3 3 7 Final Capacity 8 | 5 8 8 Final Carried 7 | 5 7 5 Class Distribution -------------------- 94% | Mutant 5% | Scavenger-Mutant Dominant Class ---------------- Mutant | -10/Materials Mutant | -9/Materials Resources | -11 -10 -9 ----------- Run | Yrd Mat Mat Matter Collected 483 | 227 108 148 Remotely . | . . . Salvage Created 680 | . 206 474 Parts 39 | . 17 22 Haulers Intercepted . | . . . Recyclers Shooed 1 | . 1 . Parts Field Recycled . | . . . Retrieved Matter . | . . . Parts Self-Destructed . | . . . Prevented . | . . . Kills | -11 -10 -9 ------- Run | Yrd Mat Mat Combat Hostiles Destroyed 14 | . 3 11 Guns 8 | . 3 5 Cannons 5 | . . 5 Classes Destroyed 8 | . 4 4 Worker 1 | . . 1 Recycler 2 | . 2 . Watcher 1 | . 1 . Swarmer 3 | . 2 1 Grunt 7 | . 1 6 Brawler 1 | . . 1 Duelist 1 | . . 1 Sentry 2 | . . 2 Best Kill Streak 4 | . 3 4 Combat Bots Only 3 | . 2 3 Max Kills in Single Turn 2 | . 2 1 Gunslinging 1 | . 1 . Exploded . | . . . Melee . | . . . Uniques/NPCs Destroyed . | . . . Combat | -11 -10 -9 -------- Run | Yrd Mat Mat Hostile Shots Fired 158 | . 14 144 Missed 31 | . 7 24 Damage Taken 1519 | . 79 1440 Core 407 | . 7 400 Absorbed by Shields . | . . . Core Remaining (%) 98 | 100 97 . Volleys Fired 60 | . 15 45 Largest 2 | . 2 2 Hottest 150 | . 60 150 Shots Fired 110 | . 29 81 Gun 84 | . 29 55 Cannon 26 | . . 26 Launcher . | . . . Special . | . . . Kinetic 41 | . 15 26 Thermal 69 | . 14 55 Explosive . | . . . Electromagnetic . | . . . Robot Hit Streak 11 | . 4 11 Robot Miss Streak 4 | . 4 4 Penetration Max . | . . . Secondary Targets 1 | . 1 . Max Gunslinging Chain 1 | . 1 . Shots Hit Robots 74 | . 16 58 Core Hits 26 | . 10 16 Critical Kills 1 | . . 1 Critical Parts Destroyed . | . . . Critical Strikes 4 | . . 4 Burn 3 | . . 3 Meltdown 1 | . . 1 Melee Attacks . | . . . Impact . | . . . Slashing . | . . . Piercing . | . . . Sneak Attacks . | . . . Combat Hostiles . | . . . Follow-up Attacks . | . . . Damage Inflicted 1283 | . 218 1065 Guns 658 | . 218 440 Cannons 625 | . . 625 Explosions . | . . . Melee . | . . . Ramming . | . . . Kinetic 328 | . 140 188 Thermal 955 | . 78 877 Explosive . | . . . Electromagnetic . | . . . Impact . | . . . Slashing . | . . . Piercing . | . . . Highest Corruption 4 | . . 4 Average Corruption 2 | . . 2 Corruption Purged . | . . . Corruption Blocked . | . . . Effects 6 | . . 6 Energy Discharges 1 | . . 1 Data Loss (minor) 3 | . . 3 Data Loss (major) 1 | . . 1 Alerts 1 | . . 1 Overload Shots . | . . . Overflow Damage 19 | . . 19 Projectiles 19 | . . 19 Explosions . | . . . Melee . | . . . Knockbacks . | . . . Impact . | . . . Kinetic . | . . . Secondary . | . . . Self-Inflicted Damage . | . . . Shots . | . . . Rammed . | . . . Targets Rammed . | . . . Kicked . | . . . Crushed . | . . . Highest Temperature 547 | . 12 547 Average Temperature 167 | . 9 177 Received Heat Transfer 288 | . 12 276 Effects 8 | . . 8 Shutdowns 1 | . . 1 Energy Bleed 2 | . . 2 Short Circuit 1 | . . 1 Damage (major) 3 | . . 3 Damage (core) 1 | . . 1 Siege Activations . | . . . Robots Corrupted . | . . . Combat Hostiles . | . . . Parts Fried . | . . . Impact Corruptions . | . . . Robots Melted 1 | . . 1 Combat Hostiles 1 | . . 1 Parts Melted 5 | . . 5 Heat Transferred 1918 | . 175 1743 Parts Sabotaged . | . . . Parts Stolen . | . . . Parts Stripped . | . . . Power Chain Reactions . | . . . Alert | -11 -10 -9 ------- Run | Yrd Mat Mat Peak Influence 194 | . 194 186 Initial 81 | . . 81 Average 98 | . 94 112 Maximum Alert Level . | . . . Low Security (%) 100 | 100 100 100 Level 1 . | . . . Level 2 . | . . . Level 3 . | . . . Level 4 . | . . . Level 5 . | . . . High Security . | . . . Max Security . | . . . Squads Dispatched 4 | . 2 2 Investigation 1 | . . 1 Extermination . | . . . Reinforcement 3 | . 2 1 Assault . | . . . Garrison . | . . . Intercept . | . . . Searches Triggered . | . . . Construction Impeded . | . . . Haulers Reinforced . | . . . Active Scanning Responses . | . . . Cargo Convoy Interrupts . | . . . Stealth | -11 -10 -9 --------- Run | Yrd Mat Mat Distress Signals 3 | . . 3 Communications Jammed . | . . . Distress Signals . | . . . Times Spotted 25 | . 7 18 Peak Tracking Total 8 | . 2 8 Tactical Retreats . | . . . Traps | -11 -10 -9 ------- Run | Yrd Mat Mat Traps Triggered 3 | . 1 2 Indirectly . | . . . Trap Hack Attempts . | . . . Triggered . | . . . Disarmed . | . . . Reprogrammed . | . . . Reused . | . . . Traps Extracted . | . . . Installed . | . . . Triggered . | . . . Machines | -11 -10 -9 ---------- Run | Yrd Mat Mat Machines Disabled . | . . . Max in Single Turn . | . . . Machines Repaired . | . . . Machines Dismantled . | . . . Machines Sabotaged . | . . . Overloaded Fab Kills . | . . . Hacking | -11 -10 -9 --------- Run | Yrd Mat Mat Machines Accessed 3 | . 3 . Terminals 2 | . 2 . Fabricators . | . . . Repair Stations . | . . . Recycling Units 1 | . 1 . Scanalyzers . | . . . Garrison Access . | . . . Total Hacks 13 | . 13 . Successful 10 | . 10 . Failed 3 | . 3 . Catastrophic . | . . . Database Lockouts . | . . . Manual . | . . . Terminals 10 | . 10 . Fabricators . | . . . Repair Stations . | . . . Recycling Units 3 | . 3 . Scanalyzers . | . . . Garrison Access . | . . . Terminal Hacks 8 | . 8 . Alert Level 1 | . 1 . Dispatch Records 1 | . 1 . Maintenance Status 2 | . 2 . Security Status 1 | . 1 . Hauler Manifests 1 | . 1 . Zone Layout 2 | . 2 . Fabricator Hacks . | . . . Repair Station Hacks . | . . . Recycling Unit Hacks 2 | . 2 . Recycle Component 1 | . 1 . Process 1 | . 1 . Scanalyzer . | . . . Garrison Access Hacks . | . . . Unauthorized Hacks . | . . . Terminals . | . . . Fabricators . | . . . Repair Stations . | . . . Recycling Units . | . . . Scanalyzers . | . . . Garrison Access . | . . . Data Cores Recovered . | . . . Used . | . . . Hacking Detections 2 | . 2 . Full Trace Events . | . . . Feedback Events . | . . . Feedback Blocked . | . . . Robot Schematics Acquired . | . . . Robots Built . | . . . Authchips . | . . . Time . | . . . Total Robot Build Rating . | . . . Part Schematics Acquired . | . . . Parts Built . | . . . Authchips . | . . . Time . | . . . Total Part Build Rating . | . . . Parts Repaired . | . . . Time . | . . . Parts Recycled 1 | . 1 . Recycled Matter 25 | . 25 . Retrieved Matter . | . . . Retrieved Components . | . . . Parts Scanalyzed . | . . . Part Schematics Acquired . | . . . Parts Damaged . | . . . Bothacking | -11 -10 -9 ------------ Run | Yrd Mat Mat Used RIF Installer . | . . . Robots Hacked . | . . . Non-combat . | . . . Combat . | . . . Robot Hacks Applied . | . . . Relay Couplers Released . | . . . Fabnet Peak Effective % . | . . . Robots Rewired . | . . . Allies Hacked . | . . . Hacks Repelled . | . . . Allies | -11 -10 -9 -------- Run | Yrd Mat Mat Total Allies . | . . . Largest Group . | . . . Highest-Rated Group . | . . . Highest-Rated Ally . | . . . Total Orders . | . . . Ally Attacks . | . . . Total Damage . | . . . Kills . | . . . Allies Corrupted . | . . . Allies Melted . | . . . Intel | -11 -10 -9 ------- Run | Yrd Mat Mat Robot Analysis Total . | . . . Derelict Logs Recovered . | . . . Drone Launches . | . . . Drone Recoveries . | . . . Exploration | -11 -10 -9 ------------- Run | Yrd Mat Mat Turns Passed 1170 | 85 372 713 Spaces Moved 692 | 66 261 365 Core 8 | 8 . . Treads . | . . . Legs 684 | 58 261 365 Wheels . | . . . Hover . | . . . Flight . | . . . Fastest Speed 50 | 50 120 120 Average Speed 119 | 111 120 120 Slowest Speed 120 | 120 120 120 Overloaded Moves . | . . . Propulsion Burnouts . | . . . Robots Hopped . | . . . Cave-ins Triggered . | . . . Exploration Rate (%) 21 | 4 41 18 Regions Visited 2 Branch Regions . Pre-discovered Areas . | . . . Known Exits Taken . | . . . Unknown Exits Taken 2 | 1 1 . Scrap Searched . | . . . Spaces Dug . | . . . Terrain Destroyed 1 | . . 1 Melee . | . . . Projectile 1 | . . 1 AOE . | . . . Terrain Rammed . | . . . Walls Destroyed . | . . . Machines Disabled . | . . . Actions | -11 -10 -9 --------- Run | Yrd Mat Mat Total 930 | 77 292 561 Wait 121 | . . 121 Move 690 | 65 260 365 Hop . | . . . Pick Up 28 | 8 8 12 Fast Attach . | . . . Attach 18 | 3 6 9 Detach 2 | . 2 . Swap 2 | 1 . 1 Drop 7 | . 1 6 Fire 60 | . 15 45 Melee . | . . . Ram . | . . . Kick . | . . . Crush . | . . . Escape Stasis . | . . . Rewire 2 | . . 2 Trap . | . . . Miscellaneous . | . . . Route ------- -11/Scrapyard -10/Materials (discovered 2 exits: [*Mat] / [Min]) -9/Materials History --------- Turn | Location | Event 2 | -11/Scrapyard | Met Revision 17 16 | -11/Scrapyard | Discovered new exit (range 15) 86 | -11/Scrapyard | Entered Materials 136 | -10/Materials | Discovered new exit (range 13) 304 | -10/Materials | Build established: Mutant 451 | -10/Materials | Discovered new exit (range 3) 458 | -10/Materials | Entered another Materials area 458 | -9/Materials | Evolved 2 slots: Propulsion x1, Utility x1 1152 | -9/Materials | Core integrity fell below 50% 1164 | -9/Materials | Core integrity fell below 20% 1171 | -9/Materials | Destroyed by G-34 Mercenary with Small Laser Last Messages --------------- (-68). 01147_ Overheating: Hvy. Particle Cannon damaged (-49). 01147_ Overheating: Broken Terrain Scanner damaged (-1). 01147_ Destroyed Imp. Aluminum Leg. 01147_ Core Shielding melted. 01147_ L-31 Rogue destroyed. 01148_ Overheating: Energy bleed (-9). 01152_ Overheating: Core damaged (-52). 01154_ M-13 Machinist fits Backup Propulsion I on S-10 Pest. 01154_ K-01 Serf collects debris. 01155_ Hvy. Particle Cannon destroyed. 01156_ M-13 Machinist repairs Lgt. Ion Engine. 01157_ K-01 Serf collects debris. 01160_ System corrupted: Component data lost. 01160_ K-01 Serf collects debris. 01168_ Hvy. Particle Cannon destroyed. 01170_ W-16 Scout sends out distress signal. Map ----- +----------------------------------------------------+ | ?????????? ??"??## # # #????????????? | | ????????????? ???# # # #??##????????? | | ??????? ????? ??# [# # ####?????????? | | ???? ?????????##?# " *+% # #?????? ?????? | | ????????????#??#?# ] !# # #????????????? | | ??????????????#??# # #+####????????????? | | ??????? ??#??????# # #?########??????? | | ??????????#??##### # #?# #??????? | | ??????? ?????#]] ###+####### ### #??????? | | ?????????????#]] #?#%#???#?# + #??????? | | ?????????????#[[ ### ###?#?# # """ #??????? | | ???????? ???#[[ ##### # """ #??????? | | ??? ????????## [[ ! + """ #??????? | | ?????????????# [ =%/ ! #############?? | | ??? ?????????##### *%=*%% #?# #?? | | ?????????????????# #########* #?# #?? | | ??????????#??#?#########?#?????#% ### #?? | | ????????????????####??########## + """ """ #?? | | ??????? ??#????? ? ?# # ### """ """ #?? | | ?????? ????"????? ??# + ### """ """ #?? | | ????????????????" """ # # #?# """ """ #?? | | ????????????????" """ # # #?# #?? | | ????????????????" """ ###w###### #######+#####?? | | ????????????# """ """ ###gs #??? | | ????????????# /=s*= u #??? | | ????????????# ###@= s #??? | | ???????????#####/###????###########+######+#####?? | | ??????????????????????????????#???? ??# #?? | | ??????????????????????????????????? ??# """ #?? | | ?????????????????? ???????????????????# """ #?? | | ??????????????????????????????????????# """ #?? | | ??????????????????????????????#???????# #?? | | ??????????????????????????????????????# !! #?? | | ??????????????????????????????????????# !! #?? | | ?????????????????? ???????????????????# ! #?? | | ??????????????????????????????????????# #?? | | ??????????????????????????????????????##########?? | | ?????????????????????????????????????????????????? | | ?????????????????????????????????????????????????? | | ?????????????????????????????????????????????????? | | ?????????????????????????????????????????????????? | | ?????????????????????????????????????????????????? | | ?????????????????????????????????????????????????? | | ?????????????????????????????????????????????????? | | ?????????????????????????????????????????????????? | | ?????????????????????????????????????????????????? | | ?????????????????????????????????????????????????? | | ?????????????????????????????????????????????????? | | ?????????????????????????????????????????????????? | | ?????????????????????????????????????????????????? | +----------------------------------------------------+ Best States ------------- Heat Dissipation 28 Energy Generation 10 Energy Capacity 400 Matter Stores 300 Matter Capacity 300 Sight Range 16 Terrain Scan Range 14 Terrain Scan Density 10 Power Shielding 33 Evasion (%) 55 Item Schematics ----------------- None Robot Schematics ------------------ None Fabricated ------------ Nothing Alien Tech Used ----------------- None Achievements -------------- It's Just You Challenges ------------ None Game ------ Seed PiercingZhirovLink Manual? 0 Play Time 00:13:01 Cumulative 4.3 hours Start 2024.12.28 @ 20:11:54 End 2024.12.28 @ 20:31:38 Sessions 1 Manual Loads 0 Difficulty Rogue Special Mode None Game No. 16 Rogue 16 Adventurer 0 Explorer 0 Win Type - Total 0 Types 0/0/0/0/0/0/0/0/0 Lore% 1 Gallery% 8 Achievement% 9 Wizard Run 0 Options --------- Layout 2 ASCII 0 Keyboard 1 Movement Vi Keybinds 0 Fullscreen 2 Font 24/Swanston Map View 50x44 Zoom Use 0% Tactical HUD 1 Map Filters NONE Filters NONE Steam 1 RUN: fedf0b31-fbe4-4499-b828-7b61d27d031b